fUST/lending_fUST_20260512
["ID","MTS","AMOUNT","RATE_DAILY","PERIOD"]
[422117321,1778579447000,-200.0,0.00012149,2]
[422117339,1778579447000,-3478.97917866,0.000122,2]
[422117341,1778579447000,-592.73809038,0.000122,2]
[422117343,1778579447000,-1524.11411573,0.000122,2]
[422117335,1778579447000,-2639.70341004,0.000122,2]
[422117346,1778579447000,-161.0,0.000123,4]
[422117315,1778579447000,-500.0,0.00012054,2]
[422117685,1778580632000,-635.16775901,7.134e-05,2]
[422117691,1778580632000,-4010.69040812,7.134e-05,2]
[422117682,1778580632000,-68.19258343,7.134e-05,2]
[422117681,1778580632000,-3938.91537964,7.063e-05,2]
[422117688,1778580632000,-285.94924944,7.134e-05,2]
[422117701,1778580632000,-4798.41151955,7.512e-05,2]
[422117695,1778580632000,-263.73000982,7.382e-05,2]
[422117697,1778580632000,-300.0,7.411e-05,2]
[422117699,1778580632000,-1977.30659734,7.412e-05,2]
[422117703,1778580632000,-152.42717838,7.562e-05,2]
[422117693,1778580632000,-1200.0,7.205e-05,2]
[422117817,1778580638000,-1333.42081254,7.562e-05,2]
[422117815,1778580638000,-831.71238038,7.562e-05,2]
[422118092,1778580640000,-539.87214237,7.6e-05,2]
[422118090,1778580640000,-3512.77044759,7.562e-05,2]
[422118547,1778580644000,-2413.22100076,7.612e-05,2]
[422118545,1778580644000,-3303.12365852,7.6e-05,2]
[422118550,1778580644000,-1317.20136664,7.662e-05,2]
[422118549,1778580644000,-3578.73353336,7.612e-05,2]
[422118824,1778580646000,-540.92371165,7.662e-05,2]
[422118812,1778580646000,-5000.0,7.585e-05,2]
[422118821,1778580646000,-448.3963019,7.662e-05,2]
[422118814,1778580646000,-615.57282915,7.662e-05,2]
[422118867,1778580647000,-13963.85595592,7.862e-05,2]
[422118869,1778580647000,-9435.63299618,7.912e-05,2]
[422118863,1778580647000,-12582.47036033,7.762e-05,2]
[422118859,1778580647000,-8278.99055549,7.662e-05,2]
[422118865,1778580647000,-7713.7937651,7.812e-05,2]
[422118871,1778580647000,-1200.0,7.926e-05,2]
[422118873,1778580647000,-3590.70062359,7.962e-05,2]
[422118889,1778580647000,-7555.21288691,7.962e-05,2]
[422118892,1778580647000,-337.2,7.962e-05,2]
[422118861,1778580647000,-7619.51644176,7.712e-05,2]
[422119237,1778581777000,-266.18005186,7.094e-05,2]
[422119236,1778581777000,-3501.24224805,7.058e-05,2]
[422119238,1778581792000,-292.57770009,7.129e-05,2]
[422119255,1778581832000,-1787.0138635,6.987e-05,2]
[422119256,1778581832000,-248.19467792,7.058e-05,2]
[422119289,1778581838000,-1399.38664955,8.012e-05,2]
[422119288,1778581838000,-9041.23471442,8.012e-05,2]
[422119286,1778581838000,-3274.82457527,7.959e-05,2]
[422119285,1778581838000,-1594.8810941,7.871e-05,2]
[422119295,1778581838000,-420.0,8.204e-05,2]
[422119287,1778581838000,-2867.71353674,7.962e-05,2]
[422119284,1778581838000,-3099.83311911,7.859e-05,2]
[422119283,1778581838000,-2924.84166296,7.759e-05,2]
[422119281,1778581838000,-2574.85875065,7.559e-05,2]
[422119279,1778581838000,-300.0,7.458e-05,2]
[422119280,1778581838000,-2399.86729463,7.459e-05,2]
[422119276,1778581838000,-488.06863182,7.058e-05,2]
[422119292,1778581838000,-7426.33573424,8.112e-05,2]
[422119278,1778581838000,-2229.450032,7.359e-05,2]
[422119277,1778581838000,-1143.37259108,7.259e-05,2]
[422119275,1778581838000,-4263.73669026,7.058e-05,2]
[422119282,1778581838000,-2749.8502068,7.659e-05,2]
[422119291,1778581838000,-2381.92151996,8.062e-05,2]
[422119296,1778581838000,-3582.78038838,8.587e-05,2]
[422119293,1778581838000,-3731.13649302,8.112e-05,2]
[422119310,1778581838000,-500.0,9.12e-05,2]
[422119309,1778581838000,-500.0,9.12e-05,2]
[422119306,1778581838000,-500.0,9.12e-05,2]
[422119301,1778581838000,-314.09246119,9.094e-05,2]
[422119304,1778581838000,-500.0,9.12e-05,2]
[422119303,1778581838000,-500.0,9.12e-05,2]
[422119299,1778581838000,-4289.62927238,8.985e-05,2]
[422119302,1778581838000,-500.0,9.12e-05,2]
[422119311,1778581838000,-500.0,9.12e-05,2]
[422119290,1778581838000,-12963.32003155,8.062e-05,2]
[422119307,1778581838000,-500.0,9.12e-05,2]
[422119298,1778581838000,-16726.62714711,8.706e-05,2]
[422119308,1778581838000,-542.59558755,9.12e-05,2]
[422119305,1778581838000,-500.0,9.12e-05,2]
[422119297,1778581838000,-12725.57581271,8.597e-05,2]
[422119294,1778581838000,-3315.52747292,8.188e-05,2]
[422119300,1778581838000,-220.0,9.024e-05,2]
[422119316,1778581839000,-500.0,9.12e-05,2]
[422119319,1778581839000,-3004.1639476,9.123e-05,2]
[422119315,1778581839000,-250.24988246,9.12e-05,2]
[422119317,1778581839000,-258.49237161,9.12e-05,2]
[422119318,1778581839000,-500.0,9.12e-05,2]
[422119313,1778581839000,-500.0,9.12e-05,2]
[422119314,1778581839000,-500.0,9.12e-05,2]
[422119312,1778581839000,-500.0,9.12e-05,2]
[422119333,1778581840000,-1532.90452827,9.123e-05,2]
[422119354,1778581843000,-857.52287274,9.682e-05,2]
[422119355,1778581843000,-427.77401337,9.682e-05,2]
[422119352,1778581843000,-1057.55343772,9.384e-05,2]
[422119353,1778581843000,-768.4774263,9.682e-05,2]
[422119351,1778581843000,-3344.05147613,9.384e-05,2]
[422119350,1778581843000,-5462.93152413,9.123e-05,2]
[422119356,1778581843000,-5064.92389278,9.682e-05,2]
[422119364,1778581847000,-1298.55723155,9.682e-05,2]
[422119365,1778581847000,-7113.5952742,9.682e-05,2]
[422119367,1778581847000,-244.47705961,9.699e-05,2]
[422119371,1778581847000,-500.0,9.699e-05,2]
[422119374,1778581847000,-500.0,9.699e-05,2]
[422119372,1778581847000,-586.69840846,9.699e-05,2]
[422119366,1778581847000,-45373.14928906,9.682e-05,2]
[422119368,1778581847000,-500.0,9.699e-05,2]
[422119376,1778581847000,-500.0,9.699e-05,2]
[422119370,1778581847000,-500.0,9.699e-05,2]
[422119373,1778581847000,-500.0,9.699e-05,2]
[422119379,1778581847000,-39128.04577065,9.7e-05,2]
[422119378,1778581847000,-200.0,9.699e-05,2]
[422119377,1778581847000,-500.0,9.699e-05,2]
[422119380,1778581847000,-4549.94968314,9.7e-05,2]
[422119375,1778581847000,-500.0,9.699e-05,2]
[422119369,1778581847000,-500.0,9.699e-05,2]
[422119381,1778581847000,-2725.3106292,9.7e-05,2]
[422120656,1778583038000,-500.0,7.999e-05,2]
[422120654,1778583038000,-12590.92608712,7.991e-05,2]
[422120643,1778583038000,-5000.0,7.456e-05,2]
[422120658,1778583038000,-216.10513454,7.999e-05,2]
[422120662,1778583038000,-500.0,7.999e-05,2]
[422120650,1778583038000,-10374.14175495,7.791e-05,2]
[422120646,1778583038000,-3372.39487218,7.591e-05,2]
[422120660,1778583038000,-500.0,7.999e-05,2]
[422120652,1778583038000,-10453.83448947,7.891e-05,2]
[422120648,1778583038000,-6873.26831356,7.691e-05,2]
[422120666,1778583038000,-500.0,7.999e-05,2]
[422120668,1778583038000,-500.0,7.999e-05,2]
[422120671,1778583038000,-54041.81651889,8e-05,2]
[422120669,1778583038000,-238.92911727,7.999e-05,2]
[422120644,1778583038000,-274.59700079,7.569e-05,2]
[422120645,1778583038000,-300.0,7.59e-05,2]
[422120664,1778583038000,-500.0,7.999e-05,2]
[422120924,1778583041000,-500.0,7.381e-05,2]
[422120916,1778583041000,-981.08142789,7.381e-05,2]
[422121809,1778583048000,-5167.93436883,8.091e-05,2]
[422121770,1778583048000,-466.05112577,8.091e-05,2]
[422121751,1778583048000,-6480.59799933,8.091e-05,2]
[422121749,1778583048000,-2725.31,8e-05,2]
[422121747,1778583048000,-35912.77739812,8e-05,2]
[422121745,1778583048000,-2020.16082016,7.381e-05,2]
[422121830,1778583409000,-3000.0,0.0001301,30]
[422121831,1778583409000,-3000.0,0.0001302,30]
[422121829,1778583409000,-3000.0,0.00013,30]
[422121832,1778583409000,-3000.0,0.0001303,30]
[422121833,1778583409000,-3000.0,0.0001304,30]
[422121836,1778583409000,-3000.0,0.0001307,30]
[422121834,1778583409000,-3000.0,0.0001305,30]
[422121841,1778583409000,-5984.72495,0.0001312,30]
[422121837,1778583409000,-3000.0,0.0001308,30]
[422121835,1778583409000,-3000.0,0.0001306,30]
[422121840,1778583409000,-3000.0,0.0001311,30]
[422121839,1778583409000,-3000.0,0.000131,30]
[422121838,1778583409000,-3000.0,0.0001309,30]
[422121842,1778583409000,-152.0,0.00013198,30]
[422121843,1778583409000,-152.0,0.00013477,30]
[422121844,1778583409000,-167.0199055,0.00014,30]
[422121847,1778583818000,1440.0,0.00014,30]
[422121849,1778583834000,152.0,0.00013999,30]
[422121848,1778583834000,152.0,0.00013999,30]
[422121907,1778584231000,-5000.0,6.889e-05,2]
[422121914,1778584231000,-300.0,7.996e-05,2]
[422121912,1778584231000,-168.63329388,6.959e-05,2]
[422121905,1778584231000,-1677.73068863,6.82e-05,2]
[422121925,1778584231000,-14728.01768491,8.191e-05,2]
[422121918,1778584231000,-300.0,7.996e-05,2]
[422121909,1778584231000,-284.62110159,6.924e-05,2]
[422121916,1778584231000,-1200.0,7.996e-05,2]
[422121922,1778584231000,-1760.4317024,8.091e-05,2]
[422121926,1778584231000,-6150.12143082,8.291e-05,2]
[422121920,1778584231000,-8262.100704,8e-05,2]
[422122041,1778584238000,-500.0,8.59e-05,2]
[422122029,1778584238000,-10714.98785188,8.291e-05,2]
[422122042,1778584238000,-500.0,8.59e-05,2]
[422122043,1778584238000,-500.0,8.59e-05,2]
[422122037,1778584238000,-500.0,8.59e-05,2]
[422122039,1778584238000,-500.0,8.59e-05,2]
[422122034,1778584238000,-500.0,8.59e-05,2]
[422122036,1778584238000,-500.0,8.59e-05,2]
[422122032,1778584238000,-1600.67691427,8.491e-05,2]
[422122031,1778584238000,-9422.93092898,8.491e-05,2]
[422122033,1778584238000,-7978.59303724,8.491e-05,2]
[422122030,1778584238000,-17375.88863772,8.391e-05,2]
[422122046,1778584238000,-500.0,8.59e-05,2]
[422122044,1778584238000,-311.61344763,8.59e-05,2]
[422122040,1778584238000,-500.0,8.59e-05,2]
[422122035,1778584238000,-500.0,8.59e-05,2]
[422122045,1778584238000,-500.0,8.59e-05,2]
[422122038,1778584238000,-500.0,8.59e-05,2]
[422122060,1778584238000,-20213.45942769,8.691e-05,2]
[422122056,1778584238000,-20876.7620791,8.591e-05,2]
[422122058,1778584238000,-3306.8362881,8.677e-05,2]
[422122048,1778584238000,-254.95580349,8.59e-05,2]
[422122053,1778584238000,-500.0,8.59e-05,2]
[422122057,1778584238000,-153.570607,8.591e-05,2]
[422122059,1778584238000,-451.9652861,8.677e-05,2]
[422122055,1778584238000,-500.0,8.59e-05,2]
[422122054,1778584238000,-389.6802249,8.59e-05,2]
[422122052,1778584238000,-500.0,8.59e-05,2]
[422122050,1778584238000,-500.0,8.59e-05,2]
[422122049,1778584238000,-500.0,8.59e-05,2]
[422122051,1778584238000,-500.0,8.59e-05,2]
[422122047,1778584238000,-500.0,8.59e-05,2]
[422122080,1778584243000,-1064.5322295,8.791e-05,2]
[422122081,1778584243000,-382.74849313,8.791e-05,2]
[422122079,1778584243000,-925.83305059,8.691e-05,2]
[422122092,1778584248000,-2419.53227568,8.791e-05,2]
[422122093,1778584248000,-9273.40016049,8.791e-05,2]
[422122094,1778584249000,-7134.95262035,8.791e-05,2]
[422122097,1778584249000,-152.0,8.809e-05,2]
[422122096,1778584249000,-152.0,8.809e-05,2]
[422122095,1778584249000,-3001.21829692,8.791e-05,2]
[422122098,1778584249000,-152.0,8.812e-05,2]
[422122099,1778584249000,-335.85289988,8.924e-05,2]
[422122100,1778584249000,-8792.47929327,8.942e-05,2]
[422122135,1778585344000,1009.24,0.00014,30]
[422122145,1778585417000,200000.0,0.00014,30]
[422122174,1778585432000,-631.87264066,8.329e-05,2]
[422122214,1778585438000,-4368.12735934,8.329e-05,2]
[422122215,1778585438000,-168.63329388,8.413e-05,2]
[422122232,1778585443000,-755.11298001,8.329e-05,2]
[422122245,1778585446000,-46.40218974,8.942e-05,2]
[422122243,1778585446000,-341.947236,8.465e-05,2]
[422122242,1778585446000,-103.57832768,8.413e-05,2]
[422122241,1778585446000,-401.88523682,8.329e-05,2]
[422122240,1778585446000,-3843.00178317,8.329e-05,2]
[422122244,1778585446000,-152.0,8.536e-05,2]
[422122246,1778585567000,500000.0,0.00014,30]
[422122248,1778586467000,1781250.97606371,0.00013585,30]
[422122289,1778586632000,-329.83074482,7.24e-05,2]
[422122291,1778586632000,-333.59681211,7.313e-05,2]
[422122293,1778586632000,-553.08353265,7.313e-05,2]
[422122295,1778586632000,-594.54488708,7.313e-05,2]
[422122470,1778586638000,-5000.0,7.387e-05,2]
[422122471,1778586638000,-281.14936208,7.652e-05,2]
[422122472,1778586638000,-999.22085084,8.485e-05,2]
[422122469,1778586638000,-1143.18792135,7.313e-05,2]
[422122473,1778586638000,-2491.17694897,8.485e-05,2]
[422122491,1778586640000,-1431.66033455,8.585e-05,2]
[422122490,1778586640000,-2467.45075736,8.585e-05,2]
[422122489,1778586640000,-808.03,8.585e-05,2]
[422122484,1778586640000,-4191.94267444,8.485e-05,2]
[422122488,1778586640000,-2848.61272256,8.585e-05,2]
[422122485,1778586640000,-152.0,8.547e-05,2]
[422122486,1778586640000,-152.0,8.547e-05,2]
[422122487,1778586640000,-683.8944722,8.56e-05,2]
[422122512,1778586646000,-380.02163,8.499e-05,2]
[422122518,1778586646000,-251.80622742,8.499e-05,2]
[422122513,1778586646000,-4368.17214258,8.499e-05,2]
[422122519,1778586647000,-7246.72152549,8.585e-05,2]
[422122520,1778586647000,-10306.79161662,8.685e-05,2]
[422122537,1778587364000,152.0,0.0001373,30]
[422122538,1778587365000,152.0,0.0001373,30]
[422122539,1778587563000,2483.9,0.00014,30]
[422122540,1778587688000,1709.69,0.00014,30]
[422122788,1778587838000,-241.79841766,8.784e-05,2]
[422122787,1778587838000,-152.0,8.733e-05,2]
[422122785,1778587838000,-1200.0,8.684e-05,2]
[422122783,1778587838000,-325.1849716,8.355e-05,2]
[422122781,1778587838000,-151.0,7.391e-05,2]
[422122790,1778587838000,-500.0,8.784e-05,2]
[422122791,1778587838000,-500.0,8.784e-05,2]
[422122786,1778587838000,-5235.38239599,8.685e-05,2]
[422122780,1778587838000,-283.18543179,7.135e-05,2]
[422122779,1778587838000,-151.0,7.027e-05,2]
[422122778,1778587838000,-5000.0,6.956e-05,2]
[422122777,1778587838000,-1753.6830432,6.886e-05,2]
[422122782,1778587838000,-151.0,7.619e-05,2]
[422122784,1778587838000,-300.0,8.684e-05,2]
[422122789,1778587838000,-500.0,8.784e-05,2]
[422122793,1778587838000,-500.0,8.784e-05,2]
[422122807,1778587838000,-26477.74633875,8.785e-05,2]
[422122805,1778587838000,-10744.29576835,8.785e-05,2]
[422122803,1778587838000,-485.94865609,8.784e-05,2]
[422122804,1778587838000,-500.0,8.784e-05,2]
[422122808,1778587838000,-1689.72065281,8.785e-05,2]
[422122801,1778587838000,-488.67715282,8.784e-05,2]
[422122802,1778587838000,-500.0,8.784e-05,2]
[422122799,1778587838000,-500.0,8.784e-05,2]
[422122798,1778587838000,-500.0,8.784e-05,2]
[422122796,1778587838000,-500.0,8.784e-05,2]
[422122794,1778587838000,-500.0,8.784e-05,2]
[422122797,1778587838000,-500.0,8.784e-05,2]
[422122795,1778587838000,-500.0,8.784e-05,2]
[422122800,1778587838000,-199.4280789,8.784e-05,2]
[422122792,1778587838000,-500.0,8.784e-05,2]
[422122816,1778587840000,-5339.53196822,8.785e-05,2]
[422122818,1778587840000,-2936.42643806,8.785e-05,2]
[422122817,1778587840000,-1604.14,8.785e-05,2]
[422122847,1778587844000,-1999.3,8.785e-05,2]
[422122851,1778587846000,-1457.10102313,8.785e-05,2]
[422122852,1778587847000,-27314.69064759,8.785e-05,2]
[422122853,1778587847000,-2466.08903906,8.785e-05,2]
[422122856,1778587854000,152.0,0.0001373,30]
[422122859,1778588038000,362.91940013,0.00014,120]
[422122860,1778588047000,152.0,0.0001373,30]
[422122867,1778588806000,152.0,0.0001373,30]
[422122921,1778589032000,-256.35143019,7.009e-05,2]
[422122958,1778589038000,-300.0,7.296e-05,2]
[422122965,1778589038000,-500.0,7.833e-05,2]
[422122966,1778589038000,-500.0,7.833e-05,2]
[422122955,1778589038000,-285.17437562,7.261e-05,2]
[422122953,1778589038000,-4780.82975148,7.08e-05,2]
[422122954,1778589038000,-5000.0,7.152e-05,2]
[422122957,1778589038000,-300.0,7.296e-05,2]
[422122952,1778589038000,-1168.16155479,7.009e-05,2]
[422122956,1778589038000,-300.0,7.296e-05,2]
[422122962,1778589038000,-300.0,7.735e-05,3]
[422122969,1778589038000,-500.0,7.833e-05,2]
[422122961,1778589038000,-7007.42731049,7.734e-05,2]
[422122959,1778589038000,-300.0,7.296e-05,2]
[422122963,1778589038000,-500.0,7.833e-05,2]
[422122964,1778589038000,-500.0,7.833e-05,2]
[422122968,1778589038000,-500.0,7.833e-05,2]
[422122967,1778589038000,-500.0,7.833e-05,2]
[422122970,1778589038000,-500.0,7.833e-05,2]
[422122971,1778589038000,-500.0,7.833e-05,2]
[422122973,1778589038000,-500.0,7.833e-05,2]
[422122972,1778589038000,-500.0,7.833e-05,2]
[422122960,1778589038000,-1000.0,7.296e-05,2]
[422122982,1778589039000,-13489.58348085,7.834e-05,2]
[422122983,1778589039000,-500.0,7.933e-05,2]
[422122984,1778589039000,-500.0,7.933e-05,2]
[422122979,1778589039000,-3238.28883582,7.834e-05,2]
[422122974,1778589039000,-500.0,7.833e-05,2]
[422122976,1778589039000,-51721.04845807,7.834e-05,2]
[422122985,1778589039000,-500.0,7.933e-05,2]
[422122975,1778589039000,-538.91072863,7.833e-05,2]
[422122978,1778589039000,-17226.94880536,7.834e-05,2]
[422122981,1778589039000,-1034.22136703,7.834e-05,2]
[422122995,1778589039000,-9457.05063491,8.034e-05,2]
[422122980,1778589039000,-31019.13530686,7.834e-05,2]
[422122986,1778589039000,-500.0,7.933e-05,2]
[422122989,1778589039000,-500.0,7.933e-05,2]
[422122988,1778589039000,-500.0,7.933e-05,2]
[422122987,1778589039000,-340.16405926,7.933e-05,2]
[422122991,1778589039000,-500.0,7.933e-05,2]
[422122990,1778589039000,-500.0,7.933e-05,2]
[422122993,1778589039000,-811334.31392757,7.934e-05,2]
[422122994,1778589039000,-14163.00363449,7.934e-05,2]
[422122992,1778589039000,-500.0,7.933e-05,2]
[422122977,1778589039000,-6895.17028341,7.834e-05,2]
[422123007,1778589041000,-544.22752634,8.034e-05,2]
[422123025,1778589044000,-2360.44398885,8.034e-05,2]
[422123026,1778589044000,-169.25889236,8.219e-05,2]
[422123027,1778589044000,-204.60058802,8.334e-05,2]
[422123024,1778589044000,-2287.82511158,8.034e-05,2]
[422123059,1778589047000,-508.0,8.63e-05,2]
[422123041,1778589047000,-500.0,8.41e-05,2]
[422123042,1778589047000,-490.34041387,8.41e-05,2]
[422123040,1778589047000,-500.0,8.41e-05,2]
[422123043,1778589047000,-21318.57995848,8.534e-05,2]
[422123039,1778589047000,-153.46788304,8.356e-05,2]
[422123044,1778589047000,-508.0,8.63e-05,2]
[422123038,1778589047000,-222.91303525,8.356e-05,2]
[422123033,1778589047000,-785.90876817,8.334e-05,2]
[422123045,1778589047000,-508.0,8.63e-05,2]
[422123047,1778589047000,-508.0,8.63e-05,2]
[422123046,1778589047000,-508.0,8.63e-05,2]
[422123037,1778589047000,-151.5,8.356e-05,2]
[422123036,1778589047000,-153.8469303,8.356e-05,2]
[422123035,1778589047000,-151.5,8.356e-05,2]
[422123052,1778589047000,-508.0,8.63e-05,2]
[422123032,1778589047000,-1957.12206464,8.334e-05,2]
[422123031,1778589047000,-896.75205161,8.334e-05,2]
[422123034,1778589047000,-14285.05513204,8.334e-05,2]
[422123050,1778589047000,-508.0,8.63e-05,2]
[422123049,1778589047000,-508.0,8.63e-05,2]
[422123053,1778589047000,-508.0,8.63e-05,2]
[422123073,1778589047000,-2452.93688462,8.734e-05,2]
[422123072,1778589047000,-5988.94119806,8.734e-05,2]
[422123070,1778589047000,-14358.69197532,8.634e-05,2]
[422123069,1778589047000,-5140.84106031,8.634e-05,2]
[422123068,1778589047000,-500.0,8.63e-05,2]
[422123067,1778589047000,-529.7247222,8.63e-05,2]
[422123064,1778589047000,-508.0,8.63e-05,2]
[422123066,1778589047000,-508.0,8.63e-05,2]
[422123065,1778589047000,-508.0,8.63e-05,2]
[422123062,1778589047000,-508.0,8.63e-05,2]
[422123063,1778589047000,-508.0,8.63e-05,2]
[422123061,1778589047000,-508.0,8.63e-05,2]
[422123058,1778589047000,-508.0,8.63e-05,2]
[422123057,1778589047000,-508.0,8.63e-05,2]
[422123056,1778589047000,-508.0,8.63e-05,2]
[422123054,1778589047000,-508.0,8.63e-05,2]
[422123048,1778589047000,-508.0,8.63e-05,2]
[422123055,1778589047000,-508.0,8.63e-05,2]
[422123051,1778589047000,-508.0,8.63e-05,2]
[422123071,1778589047000,-1819.80596642,8.634e-05,2]
[422123060,1778589047000,-508.0,8.63e-05,2]
[422123075,1778589201000,152.0,0.00013613,30]
[422123084,1778589774000,152.0,0.00013589,30]
[422123085,1778589938000,258.1315,0.00014,30]
[422123086,1778589948000,152.0,0.00013966,30]
[422123094,1778590179000,152.0,0.00013941,30]
[422123093,1778590179000,152.0,0.00013941,30]
[422123389,1778590238000,-3141.65,6.855e-05,2]
[422123659,1778590240000,-569.62280969,6.855e-05,2]
[422123666,1778590240000,-1293.86440401,8.734e-05,2]
[422123664,1778590240000,-256.35143019,6.924e-05,2]
[422123662,1778590240000,-287.12135611,6.89e-05,2]
[422123652,1778590240000,-1288.72719031,6.855e-05,2]
[422124074,1778590243000,152.0,0.00013966,30]
[422124004,1778590243000,-2416.4079311,8.734e-05,2]
[422124415,1778590246000,-152.0,8.756e-05,2]
[422124418,1778590246000,-636.44731816,8.876e-05,2]
[422124417,1778590246000,-575.3,8.784e-05,2]
[422124413,1778590246000,-152.0,8.736e-05,2]
[422124411,1778590246000,-13807.043708,8.734e-05,2]
[422124420,1778590246000,-500.0,8.88e-05,2]
[422124422,1778590246000,-226.54563652,8.88e-05,2]
[422124428,1778590246000,-500.0,8.88e-05,2]
[422124438,1778590246000,-29038.81045674,8.881e-05,2]
[422124434,1778590246000,-500.0,8.88e-05,2]
[422124446,1778590246000,-2213.78001834,8.881e-05,2]
[422124444,1778590246000,-3764.36323525,8.881e-05,2]
[422124442,1778590246000,-4135.79903966,8.881e-05,2]
[422124440,1778590246000,-4602.33260778,8.881e-05,2]
[422124426,1778590246000,-500.0,8.88e-05,2]
[422124436,1778590246000,-500.0,8.88e-05,2]
[422124430,1778590246000,-388.11484148,8.88e-05,2]
[422124432,1778590246000,-500.0,8.88e-05,2]
[422124424,1778590246000,-500.0,8.88e-05,2]
[422125784,1778590725000,504.02,0.00014,30]
[422125785,1778590734000,152.0,0.00013966,30]
[422125786,1778591038000,152.0,0.00013954,30]
[422125787,1778591039000,152.0,0.00013954,30]
[422125789,1778591062000,167.01990549,0.00014,30]
[422125797,1778591159000,152.0,0.0001389,30]
[422125835,1778591432000,-1111.6276207,3.855e-05,2]
[422125843,1778591437000,152.0,0.00013905,30]
[422125889,1778591438000,-352.44819098,6.563e-05,2]
[422125901,1778591438000,-300.0,8.678e-05,2]
[422125899,1778591438000,-300.0,8.678e-05,2]
[422125897,1778591438000,-300.0,8.678e-05,2]
[422125885,1778591438000,-179.502995,5.193e-05,2]
[422125882,1778591438000,-298.68490761,4.563e-05,2]
[422125891,1778591438000,-179.502995,7.712e-05,2]
[422125878,1778591438000,-3888.3723793,3.855e-05,2]
[422125887,1778591438000,-179.502995,6.452e-05,2]
[422125880,1778591438000,-179.502995,3.933e-05,2]
[422125895,1778591438000,-300.0,8.678e-05,2]
[422125903,1778591438000,-1200.0,8.678e-05,2]
[422125947,1778591438000,-4529.27,8.681e-05,2]
[422125893,1778591438000,-406.21147435,8.563e-05,2]
[422125920,1778591438000,-11451.4877836,8.681e-05,2]
[422125911,1778591438000,-500.0,8.68e-05,2]
[422125918,1778591438000,-45565.62922107,8.681e-05,2]
[422125914,1778591438000,-500.0,8.68e-05,2]
[422125910,1778591438000,-500.0,8.68e-05,2]
[422125907,1778591438000,-500.0,8.68e-05,2]
[422125916,1778591438000,-371.68038904,8.68e-05,2]
[422125905,1778591438000,-300.0,8.678e-05,2]
[422126026,1778591446000,-3767.61626298,8.681e-05,2]
[422126024,1778591446000,-4165.21162246,8.581e-05,2]
[422126025,1778591446000,-28625.54719917,8.581e-05,2]
[422126023,1778591446000,-5476.57233196,8.581e-05,2]
[422126022,1778591446000,-3767.61626298,8.581e-05,2]
[422126027,1778591458000,152.0,0.00013905,30]
[422126028,1778591761000,152.0,0.00013907,30]
[422126029,1778591782000,152.0,0.00013927,30]
[422126031,1778592422000,152.0,0.00013936,30]
[422126074,1778592634000,-500.0,6.12e-05,2]
[422126070,1778592634000,-558.03911494,6.12e-05,2]
[422126067,1778592634000,-1331.37290307,6.059e-05,2]
[422126069,1778592634000,-2193.03722137,6.059e-05,2]
[422126076,1778592634000,-3941.96088506,6.12e-05,2]
[422126080,1778592634000,-300.0,6.306e-05,2]
[422126082,1778592634000,-300.0,6.306e-05,2]
[422126079,1778592634000,-293.79015278,6.213e-05,2]
[422126078,1778592634000,-1200.0,6.181e-05,2]
[422126081,1778592634000,-300.0,6.306e-05,2]
[422126083,1778592634000,-300.0,6.306e-05,2]
[422126087,1778592634000,-1622.81353533,6.374e-05,2]
[422126085,1778592634000,-7557.6729504,6.307e-05,2]
[422126065,1778592634000,-559.62709693,6.059e-05,2]
[422126288,1778592638000,-20188.59991387,6.374e-05,2]
[422126286,1778592638000,-20386.39863886,6.374e-05,2]
[422126287,1778592638000,-4663.58074933,6.374e-05,2]
[422126702,1778592644000,152.0,0.00013954,30]
[422126902,1778592646000,-300.0,6.5e-05,2]
[422126904,1778592646000,-300.0,6.5e-05,2]
[422126903,1778592646000,-300.0,6.5e-05,2]
[422126905,1778592646000,-300.0,6.5e-05,2]
[422126906,1778592646000,-300.0,6.5e-05,2]
[422126908,1778592646000,-300.0,6.5e-05,2]
[422126910,1778592646000,-300.0,6.5e-05,2]
[422126901,1778592646000,-4916.34947441,6.374e-05,2]
[422126909,1778592646000,-300.0,6.5e-05,2]
[422126914,1778592646000,-300.0,6.5e-05,2]
[422126915,1778592646000,-300.0,6.5e-05,2]
[422126912,1778592646000,-300.0,6.5e-05,2]
[422126913,1778592646000,-300.0,6.5e-05,2]
[422126916,1778592646000,-300.0,6.5e-05,2]
[422126917,1778592646000,-600.0,6.5e-05,2]
[422126911,1778592646000,-300.0,6.5e-05,2]
[422126919,1778592646000,-1680.0,6.799e-05,2]
[422126920,1778592646000,-300.0,6.937e-05,2]
[422126907,1778592646000,-300.0,6.5e-05,2]
[422126918,1778592646000,-240.98131731,6.5e-05,2]